bitfinex/quotes_SOLUSD_20241231
["timestamp","ask_amount","ask_price","bid_price","bid_amount"]
[1735677883461,8.12785491,194.6,194.57,1.5417]
[1735677883669,8.12785491,194.61,194.57,1.5417]
[1735677883884,8.12785491,194.64,194.57,1.5417]
[1735677884047,12.8404,194.7,194.6,8.12785491]
[1735677884372,8.12785491,194.66,194.6,8.12785491]
[1735677885273,8.12785491,194.66,194.59,8.12785491]
[1735677886366,8.12785491,194.66,194.58,8.12785491]
[1735677887677,8.12785491,194.65,194.58,8.12785491]
[1735677888263,8.12785491,194.65,194.57,9.66955491]
[1735677892653,8.12785491,194.63,194.57,1.5417]
[1735677897554,8.12785491,194.64,194.57,9.66955491]
[1735677900481,8.12785491,194.62,194.57,1.5417]
[1735677901365,8.12785491,194.6,194.53,6.0252]
[1735677901771,8.12785491,194.59,194.53,6.0252]
[1735677902466,8.12785491,194.6,194.53,6.0252]
[1735677902870,8.12785491,194.61,194.53,14.15305491]
[1735677903966,8.12785491,194.61,194.54,8.12785491]
[1735677905082,81.3,194.67,194.57,8.12785491]
[1735677905381,8.12785491,194.65,194.59,1.5449]
[1735677905771,8.12785491,194.64,194.59,1.5449]
[1735677906584,23.776884,194.68,194.59,1.5449]
[1735677906781,8.12785491,194.65,194.59,1.5449]
[1735677907081,8.12785491,194.64,194.59,1.5449]
[1735677910897,8.12785491,194.65,194.59,1.5449]
[1735677911275,8.04499062,194.69,194.62,8.12785491]
[1735677911478,8.04499062,194.69,194.63,8.12785491]
[1735677911908,16.17284553,194.69,194.63,8.12785491]
[1735677912588,8.12785491,194.69,194.63,8.12785491]
[1735677912906,8.12785491,194.7,194.63,8.12785491]
[1735677913094,16.17284553,194.72,194.66,9.67275491]
[1735677913276,8.04499062,194.72,194.66,9.67275491]
[1735677913714,16.17284553,194.72,194.66,9.67275491]
[1735677914010,8.12785491,194.71,194.66,1.5449]
[1735677914374,16.17284553,194.72,194.66,1.5449]
[1735677914596,8.12785491,194.72,194.66,1.5449]
[1735677914987,8.04499062,194.76,194.67,14.15035491]
[1735677915190,16.17284553,194.76,194.69,8.12785491]
[1735677915379,8.12785491,194.75,194.69,8.12785491]
[1735677915794,8.12785491,194.75,194.68,8.12785491]
[1735677915995,8.12785491,194.74,194.67,14.15035491]
[1735677917794,12.8331,194.81,194.71,8.12785491]
[1735677917999,8.12785491,194.78,194.71,8.12785491]
[1735677918680,12.8313,194.84,194.73,8.12785491]
[1735677918886,8.12785491,194.8,194.73,8.12785491]
[1735677919082,8.12785491,194.79,194.72,9.62885491]
[1735677919892,8.12785491,194.75,194.72,1.501]
[1735677920778,8.12785491,194.76,194.72,1.501]
[1735677921696,8.12785491,194.74,194.67,15.65135491]
[1735677921909,8.12785491,194.72,194.67,7.5235]
[1735677922286,8.12785491,194.7,194.67,7.5235]
[1735677923509,8.12785491,194.7,194.63,8.12785491]
[1735677924204,8.12785491,194.69,194.62,7.5235]
[1735677924503,8.12785491,194.66,194.62,7.5235]
[1735677924810,8.12785491,194.69,194.62,15.65135491]
[1735677924990,8.12785491,194.69,194.63,8.12785491]
[1735677925179,8.12785491,194.7,194.64,8.12785491]
[1735677926609,8.12785491,194.71,194.64,8.12785491]
[1735677927307,8.12785491,194.7,194.64,8.12785491]
[1735677927521,8.12785491,194.71,194.64,8.12785491]
[1735677928611,8.12785491,194.7,194.64,8.12785491]
[1735677930009,8.12785491,194.67,194.62,7.5235]
[1735677930188,8.12785491,194.66,194.62,7.5235]
[1735677930386,8.12785491,194.65,194.58,8.12785491]
[1735677930587,8.12785491,194.65,194.57,7.9803]
[1735677930588,8.12785491,194.63,194.57,16.10815491]
[1735677930912,8.12785491,194.63,194.57,7.9803]
[1735677933911,8.12785491,194.63,194.57,16.10815491]
[1735677934802,8.12785491,194.63,194.57,7.9803]
[1735677937795,8.12785491,194.63,194.57,16.10815491]
[1735677938904,8.12785491,194.61,194.57,7.9803]
[1735677939316,8.12785491,194.6,194.57,7.9803]
[1735677939619,8.12785491,194.61,194.57,7.9803]
[1735677939799,8.12785491,194.61,194.57,1.5604]
[1735677940112,8.12785491,194.6,194.52,7.9803]
[1735677940313,8.12785491,194.59,194.53,8.12785491]
[1735677940511,8.12785491,194.6,194.53,8.12785491]
[1735677941005,8.12785491,194.59,194.52,16.10815491]
[1735677941200,20.0,194.6,194.47,7.9803]
[1735677941505,8.12785491,194.53,194.47,7.9803]
[1735677942213,8.12785491,194.5,194.43,8.12785491]
[1735677946493,8.12785491,194.47,194.42,7.9803]
[1735677946700,8.12785491,194.46,194.42,1.5604]
[1735677946899,8.12785491,194.46,194.39,8.12785491]
[1735677947116,8.12785491,194.45,194.4,20.0]
[1735677947429,8.12785491,194.43,194.38,1.6015]
[1735677948410,8.12785491,194.42,194.38,1.6015]
[1735677948831,8.12785491,194.41,194.34,8.12785491]
[1735677950343,8.12785491,194.4,194.34,8.12785491]
[1735677950504,8.12785491,194.41,194.34,8.12785491]
[1735677951325,8.12785491,194.4,194.33,20.99245491]
[1735677951521,12.8544,194.49,194.36,8.12785491]
[1735677951522,8.12785491,194.43,194.36,8.12785491]
[1735677951815,8.12785491,194.46,194.39,8.12785491]
[1735677952009,8.12785491,194.45,194.38,8.12785491]
[1735677952215,8.12785491,194.45,194.38,28.12785491]
[1735677952423,8.12785491,194.44,194.38,20.0]
[1735677952714,8.12785491,194.45,194.38,28.12785491]
[1735677954631,8.12785491,194.46,194.39,8.12785491]
[1735677954833,8.12785491,194.46,194.4,1.632]
[1735677955034,8.12785491,194.48,194.41,8.12785491]
[1735677955631,7.00849852,194.54,194.42,8.12785491]
[1735677955846,8.12785491,194.5,194.43,8.12785491]
[1735677957147,8.12785491,194.49,194.42,8.12785491]
[1735677958238,8.12785491,194.52,194.45,8.12785491]
[1735677958412,14.5094,194.55,194.41,23.776884]
[1735677958413,8.12785491,194.51,194.44,8.12785491]
[1735677958738,8.12785491,194.5,194.43,8.12785491]
[1735677959342,8.12785491,194.53,194.46,8.12785491]
[1735677960724,8.12785491,194.52,194.45,8.12785491]
[1735677960931,8.12785491,194.53,194.45,8.12785491]
[1735677961809,8.12785491,194.5,194.44,20.0]
[1735677962020,8.12785491,194.49,194.44,20.0]
[1735677962350,12.8495,194.56,194.29,1.6204]
[1735677962351,5.0,194.4,194.29,1.6204]
[1735677962650,8.12785491,194.31,194.24,1.6204]
[1735677962847,8.12785491,194.29,194.24,1.6204]
[1735677963232,8.12785491,194.31,194.24,1.6204]
[1735677963534,8.12785491,194.29,194.24,1.6204]
[1735677964051,8.12785491,194.28,194.23,6.2395]
[1735677964253,10.0,194.36,194.19,12.8733]
[1735677964463,12.76389683,194.25,194.18,7.8599]
[1735677964744,12.76389683,194.25,194.18,20.62379683]
[1735677964951,12.76389683,194.3,194.18,20.62379683]
[1735677964952,12.76389683,194.26,194.18,20.62379683]
[1735677965129,12.76389683,194.27,194.2,12.76389683]
[1735677965334,9.33215209,194.35,194.23,20.0]
[1735677965335,12.76389683,194.28,194.23,20.0]
[1735677965533,12.76389683,194.27,194.23,20.0]
[1735677966427,12.76389683,194.27,194.22,20.0]
[1735677966640,12.76389683,194.27,194.23,20.0]
[1735677966963,12.76389683,194.27,194.21,20.0]
[1735677967333,12.76389683,194.28,194.21,20.0]
[1735677968662,12.76389683,194.26,194.21,20.0]
[1735677969947,12.76389683,194.28,194.21,20.0]
[1735677970262,12.76389683,194.28,194.21,32.76389683]
[1735677970467,12.76389683,194.24,194.18,7.8599]
[1735677970668,12.76389683,194.2,194.13,19.00339683]
[1735677971545,12.76389683,194.21,194.14,12.76389683]
[1735677972869,12.76389683,194.22,194.15,12.76389683]
[1735677973046,12.76389683,194.23,194.16,12.76389683]
[1735677973367,12.76389683,194.25,194.16,23.776884]
[1735677973546,12.76389683,194.24,194.18,20.0]
[1735677974569,12.76389683,194.25,194.18,32.76389683]
[1735677974875,12.76389683,194.25,194.18,12.76389683]
[1735677975965,12.76389683,194.25,194.18,32.76389683]
[1735677976370,96.19033276,194.34,194.18,32.76389683]
[1735677976371,12.76389683,194.27,194.19,12.76389683]
[1735677976847,12.76389683,194.26,194.19,12.76389683]
[1735677977169,12.76389683,194.25,194.18,32.76389683]
[1735677977673,12.76389683,194.23,194.18,20.0]
[1735677977846,12.76389683,194.23,194.16,12.76389683]
[1735677978049,12.76389683,194.23,194.14,12.8771]
[1735677978050,12.76389683,194.23,194.17,20.0]
[1735677978276,12.76389683,194.22,194.17,20.0]
[1735677980476,12.76389683,194.24,194.17,32.76389683]
[1735677980855,12.76389683,194.25,194.18,12.76389683]
[1735677981169,12.76389683,194.26,194.19,12.76389683]
[1735677981371,12.76389683,194.25,194.18,12.76389683]
[1735677981868,12.76389683,194.25,194.18,25.63849683]
[1735677982060,12.76389683,194.27,194.19,12.76389683]
[1735677982371,12.76389683,194.26,194.19,12.76389683]
[1735677982576,12.76389683,194.28,194.21,12.76389683]
[1735677982778,12.76389683,194.3,194.23,6.0467]
[1735677982967,12.76389683,194.31,194.23,18.81059683]
[1735677983290,12.76389683,194.3,194.23,18.81059683]
[1735677984284,12.76389683,194.29,194.23,6.0467]
[1735677984878,12.76389683,194.29,194.26,20.0]
[1735677985066,12.76389683,194.3,194.26,20.0]
[1735677986178,12.76389683,194.31,194.27,20.0]
[1735677986392,12.76389683,194.33,194.28,20.0]
[1735677986569,12.76389683,194.29,194.28,20.0]
[1735677986889,12.76389683,194.29,194.23,6.0467]
[1735677987253,12.76389683,194.29,194.26,20.0]
[1735677987700,12.76389683,194.3,194.26,20.0]
[1735677987979,12.76389683,194.31,194.26,20.0]
[1735677988165,12.76389683,194.31,194.27,20.0]
[1735677988999,12.76389683,194.33,194.26,20.0]
[1735677990276,12.76389683,194.31,194.26,20.0]
[1735677994070,12.76389683,194.33,194.26,20.0]
[1735677995689,12.76389683,194.33,194.26,32.76389683]
[1735677996504,12.76389683,194.33,194.27,12.8686]
[1735677996669,12.76389683,194.37,194.28,36.54078083]
[1735677996991,12.76389683,194.37,194.28,12.76389683]
[1735677998293,12.76389683,194.35,194.28,12.76389683]
[1735677998679,12.76389683,194.35,194.3,20.0]
[1735677999895,12.76389683,194.4,194.27,25.63249683]
[1735677999896,12.76389683,194.32,194.27,12.8686]
[1735678000073,12.76389683,194.32,194.25,12.76389683]
[1735678002974,12.76389683,194.33,194.25,12.76389683]
[1735678003205,12.76389683,194.3,194.23,6.0467]
[1735678004207,12.76389683,194.3,194.23,18.81059683]
[1735678004374,12.76389683,194.31,194.24,12.76389683]
[1735678006505,12.76389683,194.31,194.23,18.9176]
[1735678006506,12.76389683,194.33,194.25,12.76389683]
[1735678007615,12.65426993,194.41,194.3,12.76389683]
[1735678007779,12.76389683,194.37,194.31,1.6125]
[1735678007982,12.76389683,194.36,194.31,1.6125]
[1735678008280,12.76389683,194.35,194.31,1.6125]
[1735678010309,12.76389683,194.36,194.31,1.6125]
[1735678012411,23.776884,194.42,194.31,1.6125]
[1735678012412,12.76389683,194.38,194.31,1.6125]
[1735678012997,12.76389683,194.39,194.32,12.76389683]
[1735678013313,12.76389683,194.39,194.31,14.37639683]
[1735678013705,12.76389683,194.38,194.31,1.6125]
[1735678018331,8.15897532,194.38,194.31,1.6125]
[1735678018734,8.15897532,194.38,194.32,6.4148]
[1735678023351,8.15897532,194.36,194.32,6.4148]
[1735678023528,8.15897532,194.34,194.31,1.6125]
[1735678026458,8.15897532,194.36,194.31,1.6125]
[1735678027150,8.15897532,194.38,194.31,1.6125]
[1735678027322,8.15897532,194.36,194.27,8.15897532]
[1735678027518,30.29138805,194.41,194.27,8.15897532]
[1735678027739,15.36902536,194.41,194.27,8.15897532]
[1735678027948,17.8578,194.44,194.3,6.1161]
[1735678027949,8.15897532,194.38,194.3,6.1161]
[1735678028150,8.15897532,194.38,194.31,1.5901]
[1735678028539,12.8578,194.44,194.31,9.74907532]
[1735678028744,8.15897532,194.4,194.31,9.74907532]
[1735678030664,8.15897532,194.38,194.31,9.74907532]
[1735678032566,8.15897532,194.38,194.31,1.5901]
[1735678033255,8.15897532,194.36,194.31,1.5901]
[1735678037244,8.15897532,194.38,194.31,1.5901]
[1735678037553,8.15897532,194.36,194.31,1.5901]
[1735678041595,8.15897532,194.38,194.32,8.15897532]
[1735678043576,8.04499062,194.45,194.33,20.0]
[1735678043875,8.04499062,194.45,194.41,8.15897532]
[1735678044172,8.04499062,194.45,194.44,8.15897532]
[1735678044348,8.04499062,194.45,194.44,31.93585932]
[1735678044555,8.15897532,194.56,194.44,43.84159029]
[1735678044752,8.15897532,194.55,194.48,8.15897532]
[1735678045381,20.0,194.56,194.49,10.69867741]
[1735678045572,8.15897532,194.55,194.49,10.69867741]
[1735678045874,8.15897532,194.56,194.5,10.69867741]
[1735678046460,12.72448275,194.56,194.55,32.24993153]
[1735678047182,12.72448275,194.56,194.46,14.27735484]
[1735678047183,84.38755676,194.5,194.46,14.27735484]
[1735678047359,12.72448275,194.49,194.46,14.27735484]
[1735678047560,12.72448275,194.52,194.46,14.27735484]
[1735678047885,1.5148,194.62,194.47,8.0528]
[1735678048087,23.776884,194.61,194.47,8.0528]
[1735678048382,20.0,194.58,194.49,8.05923358]
[1735678048888,12.72448275,194.56,194.49,20.78371633]
[1735678050181,12.72448275,194.56,194.49,12.72448275]
[1735678050482,12.72448275,194.57,194.5,12.72448275]
[1735678051189,12.72448275,194.55,194.48,12.72448275]
[1735678051394,12.72448275,194.51,194.47,16.11203358]
[1735678051769,12.72448275,194.52,194.47,8.0528]
[1735678052680,12.72448275,194.5,194.47,8.0528]
[1735678053186,23.776884,194.57,194.45,94.2658826]
[1735678053187,12.72448275,194.48,194.45,94.2658826]
[1735678054369,12.72448275,194.47,194.45,94.2658826]
[1735678054684,12.72448275,194.46,194.45,94.2658826]
[1735678054876,36.50136675,194.46,194.45,94.2658826]
[1735678055071,12.72448275,194.46,194.45,94.2658826]
[1735678055289,12.72448275,194.46,194.37,8.0334]
[1735678055483,12.72448275,194.44,194.37,20.75788275]
[1735678055793,12.72448275,194.43,194.37,8.0334]
[1735678056085,12.72448275,194.42,194.37,8.0334]
[1735678057776,12.72448275,194.42,194.39,8.05923358]
[1735678059578,12.72448275,194.43,194.39,8.05923358]
[1735678059777,12.72448275,194.42,194.39,8.05923358]
[1735678060274,23.776884,194.49,194.39,8.05923358]
[1735678060491,12.72448275,194.48,194.39,20.78371633]
[1735678060695,12.72448275,194.49,194.41,12.72448275]
[1735678061116,12.72448275,194.49,194.42,12.72448275]
[1735678061277,12.72448275,194.5,194.43,8.05923358]
[1735678061801,12.72448275,194.49,194.47,8.05923358]
[1735678061983,12.72448275,194.48,194.47,8.05923358]
[1735678062309,12.72448275,194.48,194.46,8.05923358]
[1735678062512,12.72448275,194.48,194.45,8.05923358]
[1735678062699,12.72448275,194.46,194.45,8.05923358]
[1735678062904,12.72448275,194.46,194.44,8.05923358]
[1735678063884,12.72448275,194.47,194.44,8.05923358]
[1735678065296,12.72448275,194.45,194.44,8.05923358]
[1735678065789,12.72448275,194.45,194.43,8.05923358]
[1735678066012,12.72448275,194.5,194.39,8.05923358]
[1735678066312,12.72448275,194.45,194.39,8.05923358]
[1735678068189,12.72448275,194.42,194.39,8.05923358]
[1735678068718,12.72448275,194.4,194.36,8.05923358]
[1735678068885,12.72448275,194.37,194.36,8.05923358]
[1735678069323,12.72448275,194.38,194.32,15.75833358]
[1735678069501,12.72448275,194.37,194.32,15.75833358]
[1735678070095,12.72448275,194.37,194.32,7.6991]
[1735678070298,20.0,194.43,194.32,7.6991]
[1735678070503,12.72448275,194.38,194.32,7.6991]
[1735678070704,12.72448275,194.36,194.32,7.6991]
[1735678070932,12.72448275,194.35,194.32,7.6991]
[1735678073411,12.72448275,194.36,194.32,7.6991]
[1735678073918,12.72448275,194.39,194.32,7.6991]
[1735678075612,12.72448275,194.38,194.32,7.6991]
[1735678076331,12.72448275,194.38,194.33,8.05923358]
[1735678076512,12.72448275,194.38,194.32,7.6991]
[1735678076719,12.72448275,194.39,194.32,33.28848275]
[1735678077222,12.72448275,194.38,194.32,20.564]
[1735678077425,12.72448275,194.36,194.32,7.6991]
[1735678080243,12.72448275,194.33,194.28,80.08023849]
[1735678080408,12.72448275,194.3,194.28,80.08023849]
[1735678080607,1.5635,194.38,194.28,80.08023849]
[1735678080608,12.72448275,194.29,194.28,80.08023849]
[1735678080831,12.72448275,194.3,194.28,80.08023849]
[1735678081034,12.72448275,194.33,194.28,80.08023849]
[1735678081232,12.8574,194.44,194.28,80.08023849]
[1735678081233,12.72448275,194.36,194.29,12.72448275]
[1735678081549,12.72448275,194.36,194.32,20.0]
[1735678081916,12.72448275,194.35,194.32,20.0]
[1735678082236,12.72448275,194.36,194.32,20.0]
[1735678082413,12.72448275,194.37,194.32,20.0]
[1735678082614,12.72448275,194.35,194.32,20.0]
[1735678082812,12.72448275,194.36,194.32,20.0]
[1735678083118,12.72448275,194.37,194.32,20.0]
[1735678083328,12.72448275,194.38,194.32,20.0]
[1735678083530,12.72448275,194.37,194.32,20.0]
[1735678086249,8.15919664,194.37,194.32,20.0]
[1735678086620,12.8555,194.47,194.34,8.15919664]
[1735678086831,8.15919664,194.42,194.35,8.15919664]
[1735678087355,8.15919664,194.43,194.36,1.5107]
[1735678087516,1.5635,194.49,194.36,1.5107]
[1735678087517,8.15919664,194.44,194.36,16.04079664]
[1735678087719,8.15919664,194.43,194.36,16.04079664]
[1735678087919,8.15919664,194.43,194.36,7.8816]
[1735678088653,8.15919664,194.42,194.36,7.8816]
[1735678091056,8.15919664,194.41,194.36,7.8816]
[1735678091366,8.15919664,194.43,194.36,7.8816]
[1735678091552,8.15919664,194.44,194.36,16.04079664]
[1735678091855,8.15919664,194.43,194.36,24.10003022]
[1735678092254,8.15919664,194.43,194.36,16.04079664]
[1735678093659,8.15919664,194.43,194.36,7.8816]
[1735678094655,8.15919664,194.41,194.36,15.94083358]
[1735678095246,8.15919664,194.41,194.36,7.8816]
[1735678095436,8.15919664,194.42,194.36,7.8816]
[1735678095851,8.15919664,194.42,194.36,15.94083358]
[1735678096037,8.15919664,194.4,194.36,15.94083358]
[1735678096659,8.15919664,194.37,194.36,8.05923358]
[1735678096844,8.15919664,194.37,194.34,8.05923358]
[1735678097456,8.15919664,194.35,194.31,1.5911]
[1735678097645,8.15919664,194.34,194.31,1.5911]
[1735678098366,8.15919664,194.34,194.3,8.05923358]
[1735678098576,8.15919664,194.33,194.3,8.05923358]
[1735678098948,8.15919664,194.32,194.3,8.05923358]
[1735678100943,8.15919664,194.32,194.27,8.05923358]
[1735678101680,8.15919664,194.32,194.28,8.05923358]
[1735678102044,23.776884,194.39,194.28,8.05923358]
[1735678102045,8.15919664,194.34,194.28,8.05923358]
[1735678102241,1.6156,194.41,194.31,20.0]
[1735678102577,8.15919664,194.37,194.3,8.15919664]
[1735678102770,8.15919664,194.37,194.33,20.0]
[1735678103075,8.15919664,194.38,194.33,20.0]
[1735678103679,23.776884,194.43,194.33,20.0]
[1735678103846,8.15919664,194.38,194.33,28.05923358]
[1735678104175,8.15919664,194.4,194.33,28.05923358]
[1735678104769,14.4718,194.46,194.34,6.4827]
[1735678104959,87.7327,194.49,194.34,6.4827]
[1735678104960,8.15919664,194.43,194.35,8.15919664]
[1735678105165,8.15919664,194.43,194.36,8.15919664]
[1735678105882,8.15919664,194.43,194.39,8.05923358]
[1735678106677,6.4327,194.49,194.39,8.05923358]
[1735678106880,8.15919664,194.45,194.38,8.15919664]
[1735678107185,8.15919664,194.44,194.37,16.21843022]
[1735678107365,8.15919664,194.45,194.38,8.15919664]
[1735678107569,8.15919664,194.46,194.39,8.15919664]
[1735678107960,8.15919664,194.45,194.38,21.02059664]
[1735678108163,8.15919664,194.45,194.38,29.07983022]
[1735678108467,12.73863071,194.44,194.38,20.92063358]
[1735678109278,12.73863071,194.44,194.39,8.05923358]
[1735678110685,12.73863071,194.44,194.38,20.92063358]
[1735678111381,12.73863071,194.44,194.38,8.05923358]
[1735678111588,12.73863071,194.42,194.38,8.05923358]
[1735678111886,12.73863071,194.43,194.38,8.05923358]
[1735678112191,12.73863071,194.43,194.39,20.0]
[1735678114877,12.73863071,194.44,194.39,20.0]
[1735678117389,12.73863071,194.42,194.39,28.05923358]
[1735678117973,12.73863071,194.43,194.39,28.05923358]
[1735678118173,12.73863071,194.43,194.39,20.0]
[1735678118574,12.73863071,194.43,194.39,28.05923358]
[1735678120082,12.73863071,194.43,194.4,8.05923358]
[1735678123600,12.73863071,194.43,194.39,28.05923358]
[1735678124371,12.73863071,194.44,194.39,28.05923358]
[1735678124694,12.73863071,194.44,194.4,8.05923358]
[1735678126103,12.73863071,194.43,194.4,8.05923358]
[1735678126572,12.73863071,194.44,194.4,8.05923358]
[1735678128402,8.15377147,194.44,194.4,8.05923358]
[1735678129282,8.15377147,194.45,194.4,8.05923358]
[1735678129481,8.15377147,194.49,194.41,8.15377147]
[1735678129691,8.15377147,194.49,194.42,16.14967147]
[1735678130203,1.5565,194.56,194.44,8.05923358]
[1735678130383,8.15377147,194.52,194.45,8.15377147]
[1735678130899,8.15377147,194.52,194.46,8.05923358]
[1735678131101,8.15377147,194.53,194.46,16.21300505]
[1735678131275,8.15377147,194.53,194.48,8.05923358]
[1735678131474,8.15377147,194.54,194.48,8.05923358]
[1735678131713,8.15377147,194.55,194.48,8.05923358]
[1735678131882,8.15377147,194.55,194.49,8.05923358]
[1735678132576,8.15377147,194.55,194.48,16.21300505]
[1735678132995,8.15377147,194.56,194.5,7.9959]
[1735678133482,8.15377147,194.56,194.5,16.05513358]
[1735678134007,8.15377147,194.55,194.5,16.05513358]
[1735678134182,8.15377147,194.54,194.51,8.05923358]
[1735678134704,8.15377147,194.54,194.5,7.9959]
[1735678136529,8.15377147,194.55,194.5,7.9959]
[1735678136894,8.15377147,194.59,194.52,8.15377147]
[1735678137108,8.15377147,194.59,194.5,7.9959]
[1735678137109,8.15377147,194.59,194.51,8.15377147]
[1735678137308,8.15377147,194.58,194.51,8.15377147]
[1735678137513,8.15377147,194.57,194.5,16.14967147]
[1735678137725,8.15377147,194.54,194.5,7.9959]
[1735678141200,8.15377147,194.53,194.5,7.9959]
[1735678141712,8.15377147,194.51,194.45,15.81083358]
[1735678141909,8.15377147,194.49,194.45,7.7516]
[1735678142109,8.15377147,194.48,194.45,7.7516]
[1735678142318,8.15377147,194.5,194.45,7.7516]
[1735678142728,8.15377147,194.49,194.45,7.7516]
[1735678142913,8.15377147,194.48,194.41,6.2257]
[1735678143108,8.15377147,194.47,194.41,6.2257]
[1735678143516,8.15377147,194.46,194.41,6.2257]
[1735678143740,8.15377147,194.44,194.4,1.5259]
[1735678144207,12.74134931,194.44,194.4,1.5259]
[1735678145416,12.74134931,194.43,194.36,6.2257]
[1735678146632,12.74134931,194.43,194.36,18.96704931]
[1735678147136,23.776884,194.49,194.37,12.74134931]
[1735678147329,12.74134931,194.47,194.4,12.74134931]
[1735678147513,12.74134931,194.48,194.4,12.74134931]
[1735678148002,12.74134931,194.49,194.41,12.74134931]
[1735678148619,12.74134931,194.48,194.41,12.74134931]
[1735678149020,12.74134931,194.48,194.39,8.05923358]
[1735678149021,12.74134931,194.46,194.39,20.80058289]
[1735678149448,12.74134931,194.46,194.39,12.74134931]
[1735678150255,12.74134931,194.46,194.37,20.92123358]
[1735678150256,12.74134931,194.45,194.38,12.74134931]
[1735678150531,4.41323314,194.55,194.4,12.74134931]
[1735678150732,12.74134931,194.48,194.4,12.74134931]
[1735678151421,12.74134931,194.49,194.42,12.74134931]
[1735678151824,12.74134931,194.48,194.41,12.74134931]
[1735678152303,12.74134931,194.48,194.4,12.74134931]
[1735678152503,12.74134931,194.48,194.4,20.80058289]
[1735678153431,23.776884,194.54,194.43,12.74134931]
[1735678153609,12.74134931,194.5,194.43,14.26724931]
[1735678153813,12.74134931,194.52,194.45,12.74134931]
[1735678154317,12.74134931,194.53,194.46,12.74134931]
[1735678154525,12.74134931,194.51,194.44,18.96704931]
[1735678155128,12.74134931,194.49,194.44,14.28493358]
[1735678155308,12.74134931,194.48,194.44,14.28493358]
[1735678155633,12.74134931,194.49,194.44,14.28493358]
[1735678155817,12.74134931,194.5,194.44,6.2257]
[1735678156019,12.74134931,194.49,194.44,6.2257]
[1735678156736,12.74134931,194.5,194.44,6.2257]
[1735678156912,12.74134931,194.51,194.44,18.96704931]
[1735678157933,12.74134931,194.52,194.44,18.96704931]
[1735678158139,12.74134931,194.52,194.45,12.74134931]
[1735678158312,12.74134931,194.54,194.47,12.74134931]
[1735678158509,12.74134931,194.56,194.49,12.74134931]
[1735678158711,12.74134931,194.54,194.47,12.74134931]
[1735678159009,12.74134931,194.53,194.46,8.05923358]
[1735678159211,12.74134931,194.51,194.45,8.05923358]
[1735678159920,12.74134931,194.51,194.44,18.96704931]
[1735678161342,12.74134931,194.52,194.44,18.96704931]
[1735678161642,12.74134931,194.5,194.44,6.2257]
[1735678161843,12.74134931,194.52,194.44,18.96704931]
[1735678162213,12.74134931,194.52,194.45,12.74134931]
[1735678163415,12.74134931,194.52,194.44,27.02628289]
[1735678163819,12.74134931,194.53,194.45,12.74134931]
[1735678164045,12.74134931,194.54,194.46,12.74134931]
[1735678164227,12.74134931,194.55,194.48,12.74134931]
[1735678164642,12.74134931,194.54,194.47,12.74134931]
[1735678165316,12.74134931,194.55,194.47,12.74134931]
[1735678165516,12.74134931,194.56,194.48,12.74134931]
[1735678166350,12.74134931,194.56,194.48,20.80058289]
[1735678166825,12.74134931,194.56,194.49,12.74134931]
[1735678167028,12.74134931,194.57,194.49,12.74134931]
[1735678167343,12.74134931,194.59,194.52,6.3864]
[1735678167740,12.74134931,194.58,194.52,6.3864]
[1735678168326,8.14247313,194.58,194.52,6.3864]
[1735678169424,89.28785464,194.65,194.52,6.3864]
[1735678169425,8.14247313,194.55,194.52,6.3864]
[1735678169627,8.14247313,194.55,194.49,9.65243358]
[1735678170130,8.14247313,194.57,194.5,8.14247313]
[1735678170334,12.72438109,194.57,194.5,12.72438109]
[1735678171258,12.72438109,194.56,194.49,22.37681467]
[1735678171444,12.72438109,194.55,194.49,9.65243358]
[1735678171947,12.72438109,194.56,194.49,14.31758109]
[1735678172463,12.72438109,194.56,194.49,22.37681467]
[1735678172754,12.72438109,194.56,194.49,9.65243358]
[1735678172955,12.72438109,194.52,194.49,8.05923358]
[1735678173128,12.72438109,194.5,194.48,8.05923358]
[1735678173930,12.72438109,194.5,194.47,6.0964]
[1735678174136,12.72438109,194.49,194.45,1.6434]
[1735678174358,12.72438109,194.48,194.43,6.0964]
[1735678175135,12.72438109,194.49,194.43,6.0964]
[1735678176545,12.72438109,194.5,194.43,18.82078109]
[1735678176760,12.72438109,194.5,194.43,26.88001467]
[1735678177249,12.72438109,194.5,194.43,18.82078109]
[1735678178240,32.72438109,194.51,194.43,18.82078109]
[1735678178444,12.72438109,194.51,194.44,12.72438109]
[1735678178737,12.72438109,194.51,194.44,20.78361467]
[1735678179149,12.72438109,194.54,194.46,12.72438109]
[1735678179356,12.72438109,194.55,194.48,12.72438109]
[1735678179863,12.72438109,194.55,194.49,1.6434]
[1735678180037,12.72438109,194.56,194.49,14.36778109]
[1735678180445,12.72438109,194.55,194.49,1.6434]
[1735678181355,12.72438109,194.54,194.49,1.6434]
[1735678183860,12.72438109,194.56,194.49,1.6434]